[Event "Titled Tuesday Blitz November 15 Early 2022"]
[White "Petrovic, Aleksa"]
[Black "Hambleton, Aman"]
[WhiteFideId "967629"]
[BlackFideId "2606577"]
[WhiteElo "2224"]
[BlackElo "2538"]
[Result "0-1"]
[Round "02"]
[TimeControl "180+1"]
[Date "2022.11.16"]
[WhiteClock "0:00:02"]
[BlackClock "0:00:03"]

1. d4 {[%clk 0:03:00]}  Nf6 {[%clk 0:02:59]} 2. c4 {[%clk 0:03:01]}  e6 {[%clk 0:02:57]} 3. Nf3 {[%clk 0:03:01]}  b6 {[%clk 0:02:56]} 4. g3 {[%clk 0:03:02]}  Ba6 {[%clk 0:02:43]} 5. Qa4 {[%clk 0:03:02]}  Bb7 {[%clk 0:02:40]} 6. Bg2 {[%clk 0:03:02]}  c5 {[%clk 0:02:40]} 7. dxc5 {[%clk 0:03:02]}  Bxc5 {[%clk 0:02:41]} 8. O-O {[%clk 0:03:02]}  O-O {[%clk 0:02:42]} 9. Nc3 {[%clk 0:03:02]}  Be7 {[%clk 0:02:42]} 10. Rd1 {[%clk 0:03:01]}  d6 {[%clk 0:02:41]} 11. Bf4 {[%clk 0:03:00]}  a6 {[%clk 0:02:41]} 12. Rd2 {[%clk 0:02:48]}  Qc7 {[%clk 0:02:34]} 13. Rad1 {[%clk 0:02:42]}  Rd8 {[%clk 0:02:33]} 14. h3 {[%clk 0:02:12]}  h6 {[%clk 0:02:29]} 15. g4 {[%clk 0:02:11]}  Ne8 {[%clk 0:02:06]} 16. e4 {[%clk 0:02:01]}  Nd7 {[%clk 0:02:04]} 17. e5 {[%clk 0:01:55]}  Bc6 {[%clk 0:00:52]} 18. exd6 {[%clk 0:01:14]}  Bxd6 {[%clk 0:00:52]} 19. Bxd6 {[%clk 0:01:06]}  Nxd6 {[%clk 0:00:52]} 20. Qb4 {[%clk 0:00:48]}  Nc5 {[%clk 0:00:42]} 21. b3 {[%clk 0:00:29]}  a5 {[%clk 0:00:29]} 22. Qa3 {[%clk 0:00:28]}  Nde4 {[%clk 0:00:12]} 23. Nxe4 {[%clk 0:00:27]}  Bxe4 {[%clk 0:00:11]} 24. Qb2 {[%clk 0:00:22]}  Bxf3 {[%clk 0:00:08]} 25. Bxf3 {[%clk 0:00:20]}  Rac8 {[%clk 0:00:08]} 26. Kg2 {[%clk 0:00:13]}  Kf8 {[%clk 0:00:05]} 27. Qc3 {[%clk 0:00:12]}  Rxd2 {[%clk 0:00:03]} 28. Rxd2 {[%clk 0:00:10]}  Rd8 {[%clk 0:00:02]} 29. Qe3 {[%clk 0:00:08]}  Ke7 {[%clk 0:00:02]} 30. Rxd8 {[%clk 0:00:07]}  Qxd8 {[%clk 0:00:02]} 31. a3 {[%clk 0:00:08]}  Qd6 {[%clk 0:00:02]} 32. b4 {[%clk 0:00:07]}  axb4 {[%clk 0:00:03]} 33. axb4 {[%clk 0:00:08]}  Na6 {[%clk 0:00:04]} 34. c5 {[%clk 0:00:05]}  bxc5 {[%clk 0:00:05]} 35. b5 {[%clk 0:00:05]}  Nc7 {[%clk 0:00:02]} 36. Qb3 {[%clk 0:00:04]}  Qb6 {[%clk 0:00:02]} 37. Bc6 {[%clk 0:00:04]}  g5 {[%clk 0:00:01]} 38. Qc4 {[%clk 0:00:03]}  Nd5 {[%clk 0:00:01]} 39. Qa4 {[%clk 0:00:03]}  Nf6 {[%clk 0:00:01]} 40. Qa6 {[%clk 0:00:02]}  Qc7 {[%clk 0:00:01]} 41. Qb7 {[%clk 0:00:02]}  Kd6 {[%clk 0:00:02]} 42. Qa8 {[%clk 0:00:02]}  Nd5 {[%clk 0:00:02]} 43. Qf8+ {[%clk 0:00:02]}  Ke5 {[%clk 0:00:02]} 44. Qxh6 {[%clk 0:00:03]}  f6 {[%clk 0:00:02]} 45. Qh7 {[%clk 0:00:02]}  Nf4+ {[%clk 0:00:02]} 46. Kg3 {[%clk 0:00:02]}  Kd4 {[%clk 0:00:02]} 47. Qc2 {[%clk 0:00:01]}  Nd3+ {[%clk 0:00:02]} 48. Kg2 {[%clk 0:00:02]}  Ne1+ {[%clk 0:00:02]} 49. Kf1 {[%clk 0:00:02]}  Nxc2 {[%clk 0:00:03]} 0-1


[Site "https://www.chess.com"]

[Event "Titled Tuesday Blitz November 15 Early 2022"]
[White "Pg, Mohd Omar Ak Hira"]
[Black "Korchmar, Vasiliy"]
[WhiteFideId "10500103"]
[BlackFideId "24131750"]
[WhiteElo "2184"]
[BlackElo "2370"]
[Result "0-1"]
[Round "02"]
[TimeControl "180+1"]
[Date "2022.11.16"]
[WhiteClock "0:00:02"]
[BlackClock "0:00:02"]

1. e4 {[%clk 0:03:00]}  c5 {[%clk 0:02:59]} 2. Nf3 {[%clk 0:02:59]}  d6 {[%clk 0:03:00]} 3. d4 {[%clk 0:02:59]}  cxd4 {[%clk 0:03:01]} 4. Nxd4 {[%clk 0:03:00]}  Nf6 {[%clk 0:03:02]} 5. Nc3 {[%clk 0:03:00]}  Nc6 {[%clk 0:03:02]} 6. Bc4 {[%clk 0:03:00]}  Qb6 {[%clk 0:03:00]} 7. Nxc6 {[%clk 0:02:50]}  bxc6 {[%clk 0:02:59]} 8. O-O {[%clk 0:02:49]}  g6 {[%clk 0:02:48]} 9. Be3 {[%clk 0:02:10]}  Qc7 {[%clk 0:02:46]} 10. Qd2 {[%clk 0:02:02]}  Ng4 {[%clk 0:02:32]} 11. Bf4 {[%clk 0:01:55]}  Bg7 {[%clk 0:02:27]} 12. h3 {[%clk 0:01:50]}  Ne5 {[%clk 0:02:27]} 13. Bb3 {[%clk 0:01:48]}  O-O {[%clk 0:02:21]} 14. Bh6 {[%clk 0:01:36]}  Be6 {[%clk 0:02:00]} 15. Bxg7 {[%clk 0:01:35]}  Kxg7 {[%clk 0:02:01]} 16. Qd4 {[%clk 0:01:35]}  c5 {[%clk 0:01:55]} 17. Qd2 {[%clk 0:01:28]}  c4 {[%clk 0:01:36]} 18. Ba4 {[%clk 0:01:27]}  f6 {[%clk 0:01:33]} 19. b3 {[%clk 0:01:21]}  Rac8 {[%clk 0:01:27]} 20. Nd5 {[%clk 0:01:19]}  Qb7 {[%clk 0:01:18]} 21. f4 {[%clk 0:01:16]}  Bxd5 {[%clk 0:00:55]} 22. exd5 {[%clk 0:00:52]}  Nd7 {[%clk 0:00:51]} 23. Bxd7 {[%clk 0:00:49]}  Qxd7 {[%clk 0:00:51]} 24. Rae1 {[%clk 0:00:49]}  Rf7 {[%clk 0:00:46]} 25. Re6 {[%clk 0:00:38]}  Qb5 {[%clk 0:00:46]} 26. Rfe1 {[%clk 0:00:37]}  Rc7 {[%clk 0:00:47]} 27. a4 {[%clk 0:00:35]}  Qb6+ {[%clk 0:00:44]} 28. Qe3 {[%clk 0:00:33]}  Qa5 {[%clk 0:00:42]} 29. f5 {[%clk 0:00:25]}  Qxd5 {[%clk 0:00:38]} 30. fxg6 {[%clk 0:00:22]}  hxg6 {[%clk 0:00:39]} 31. Re4 {[%clk 0:00:22]}  cxb3 {[%clk 0:00:36]} 32. cxb3 {[%clk 0:00:22]}  e5 {[%clk 0:00:34]} 33. Kh1 {[%clk 0:00:20]}  f5 {[%clk 0:00:31]} 34. Rh4 {[%clk 0:00:20]}  f4 {[%clk 0:00:31]} 35. Qe2 {[%clk 0:00:21]}  Qxb3 {[%clk 0:00:20]} 36. Rg4 {[%clk 0:00:19]}  Qc2 {[%clk 0:00:17]} 37. Qb5 {[%clk 0:00:14]}  Qf5 {[%clk 0:00:14]} 38. Rd1 {[%clk 0:00:12]}  Rfd7 {[%clk 0:00:11]} 39. Qb8 {[%clk 0:00:10]}  Rb7 {[%clk 0:00:10]} 40. Qc8 {[%clk 0:00:10]}  Rbc7 {[%clk 0:00:09]} 41. Qb8 {[%clk 0:00:10]}  Qe6 {[%clk 0:00:08]} 42. Rh4 {[%clk 0:00:09]}  Qg8 {[%clk 0:00:04]} 43. Qb2 {[%clk 0:00:10]}  Qd8 {[%clk 0:00:03]} 44. Rxf4 {[%clk 0:00:09]}  Rb7 {[%clk 0:00:03]} 45. Qa1 {[%clk 0:00:09]}  Qg5 {[%clk 0:00:03]} 46. Rff1 {[%clk 0:00:08]}  Rf7 {[%clk 0:00:03]} 47. Rg1 {[%clk 0:00:08]}  Rbd7 {[%clk 0:00:02]} 48. Rd5 {[%clk 0:00:07]}  Qf6 {[%clk 0:00:03]} 49. Qd1 {[%clk 0:00:07]}  Qe6 {[%clk 0:00:03]} 50. Qd3 {[%clk 0:00:07]}  Rf6 {[%clk 0:00:03]} 51. a5 {[%clk 0:00:06]}  e4 {[%clk 0:00:04]} 52. Qd4 {[%clk 0:00:05]}  e3 {[%clk 0:00:04]} 53. a6 {[%clk 0:00:05]}  e2 {[%clk 0:00:04]} 54. Qd2 {[%clk 0:00:05]}  Re7 {[%clk 0:00:04]} 55. Rxd6 {[%clk 0:00:02]}  e1=Q {[%clk 0:00:02]} 0-1


[Site "https://www.chess.com"]

[Event "Titled Tuesday Blitz November 15 Early 2022"]
[White "Pichot, Alan"]
[Black "Parpiev, Isaak"]
[WhiteFideId "110973"]
[BlackFideId "34281576"]
[WhiteElo "2560"]
[BlackElo "2094"]
[Result "1/2-1/2"]
[Round "02"]
[TimeControl "180+1"]
[Date "2022.11.16"]
[WhiteClock "0:00:05"]
[BlackClock "0:00:06"]

1. Nf3 {[%clk 0:03:00]}  Nf6 {[%clk 0:02:59]} 2. b3 {[%clk 0:02:57]}  d6 {[%clk 0:02:51]} 3. Bb2 {[%clk 0:02:56]}  e5 {[%clk 0:02:50]} 4. g3 {[%clk 0:02:55]}  g6 {[%clk 0:02:50]} 5. c4 {[%clk 0:02:55]}  Bg7 {[%clk 0:02:50]} 6. Bg2 {[%clk 0:02:55]}  O-O {[%clk 0:02:50]} 7. O-O {[%clk 0:02:56]}  Re8 {[%clk 0:02:48]} 8. d3 {[%clk 0:02:56]}  h6 {[%clk 0:02:44]} 9. Nc3 {[%clk 0:02:55]}  Nc6 {[%clk 0:02:44]} 10. a3 {[%clk 0:02:52]}  e4 {[%clk 0:02:25]} 11. dxe4 {[%clk 0:02:48]}  Nxe4 {[%clk 0:02:24]} 12. Rc1 {[%clk 0:02:48]}  Nxc3 {[%clk 0:02:14]} 13. Bxc3 {[%clk 0:02:48]}  Bxc3 {[%clk 0:02:15]} 14. Rxc3 {[%clk 0:02:49]}  Qf6 {[%clk 0:02:15]} 15. Re3 {[%clk 0:02:15]}  Rxe3 {[%clk 0:01:58]} 16. fxe3 {[%clk 0:02:16]}  Qe7 {[%clk 0:01:56]} 17. Qd2 {[%clk 0:02:09]}  Bg4 {[%clk 0:01:56]} 18. Nd4 {[%clk 0:02:08]}  Re8 {[%clk 0:01:20]} 19. Bd5 {[%clk 0:01:16]}  Nd8 {[%clk 0:00:54]} 20. Rf4 {[%clk 0:01:00]}  Bd7 {[%clk 0:00:31]} 21. Re4 {[%clk 0:00:59]}  Qf8 {[%clk 0:00:28]} 22. Qa5 {[%clk 0:00:47]}  c6 {[%clk 0:00:24]} 23. Rxe8 {[%clk 0:00:29]}  Qxe8 {[%clk 0:00:25]} 24. Bf3 {[%clk 0:00:29]}  Qxe3+ {[%clk 0:00:21]} 25. Kg2 {[%clk 0:00:30]}  Ne6 {[%clk 0:00:12]} 26. Nxe6 {[%clk 0:00:30]}  Bxe6 {[%clk 0:00:12]} 27. Qd8+ {[%clk 0:00:30]}  Kg7 {[%clk 0:00:12]} 28. Qxd6 {[%clk 0:00:31]}  a5 {[%clk 0:00:09]} 29. Qd3 {[%clk 0:00:25]}  Qxd3 {[%clk 0:00:09]} 30. exd3 {[%clk 0:00:26]}  f5 {[%clk 0:00:04]} 31. Kf2 {[%clk 0:00:24]}  Kf6 {[%clk 0:00:04]} 32. Ke3 {[%clk 0:00:25]}  Ke5 {[%clk 0:00:04]} 33. d4+ {[%clk 0:00:25]}  Kd6 {[%clk 0:00:04]} 34. Be2 {[%clk 0:00:26]}  g5 {[%clk 0:00:04]} 35. Bd3 {[%clk 0:00:26]}  c5 {[%clk 0:00:03]} 36. Be2 {[%clk 0:00:05]}  b6 {[%clk 0:00:03]} 37. Bd3 {[%clk 0:00:05]}  Bd7 {[%clk 0:00:03]} 38. Bc2 {[%clk 0:00:05]}  Be6 {[%clk 0:00:03]} 39. Bd3 {[%clk 0:00:05]}  Bd7 {[%clk 0:00:04]} 40. Bf1 {[%clk 0:00:05]}  Be6 {[%clk 0:00:04]} 41. h4 {[%clk 0:00:05]}  Bd7 {[%clk 0:00:03]} 42. hxg5 {[%clk 0:00:05]}  hxg5 {[%clk 0:00:04]} 43. Bd3 {[%clk 0:00:04]}  Be6 {[%clk 0:00:04]} 44. Bc2 {[%clk 0:00:04]}  Bd7 {[%clk 0:00:04]} 45. Bb1 {[%clk 0:00:04]}  Be6 {[%clk 0:00:04]} 46. Bd3 {[%clk 0:00:05]}  Bc8 {[%clk 0:00:04]} 47. Bc2 {[%clk 0:00:05]}  Be6 {[%clk 0:00:05]} 48. Bd1 {[%clk 0:00:05]}  Bd7 {[%clk 0:00:05]} 49. Bf3 {[%clk 0:00:04]}  Be8 {[%clk 0:00:04]} 50. Bd5 {[%clk 0:00:03]}  Bd7 {[%clk 0:00:04]} 51. Bb7 {[%clk 0:00:03]}  Be6 {[%clk 0:00:04]} 52. Ba8 {[%clk 0:00:03]}  Bd7 {[%clk 0:00:04]} 53. Bf3 {[%clk 0:00:02]}  Be6 {[%clk 0:00:05]} 54. a4 {[%clk 0:00:02]}  Bd7 {[%clk 0:00:05]} 55. Bg2 {[%clk 0:00:03]}  Be6 {[%clk 0:00:05]} 56. Bf3 {[%clk 0:00:04]}  Bd7 {[%clk 0:00:05]} 57. Bg2 {[%clk 0:00:04]}  Be6 {[%clk 0:00:06]} 58. Bf3 {[%clk 0:00:05]} 1/2-1/2


[Site "https://www.chess.com"]

[Event "Titled Tuesday Blitz November 15 Early 2022"]
[White "Potapova, Margarita"]
[Black "Beerdsen, Thomas"]
[WhiteFideId "14126869"]
[BlackFideId "1030108"]
[WhiteElo "2272"]
[BlackElo "2567"]
[Result "1/2-1/2"]
[Round "02"]
[TimeControl "180+1"]
[Date "2022.11.16"]
[WhiteClock "0:00:17"]
[BlackClock "0:00:18"]

1. e4 {[%clk 0:02:59]}  e5 {[%clk 0:02:56]} 2. Nf3 {[%clk 0:03:00]}  Nc6 {[%clk 0:02:57]} 3. Nc3 {[%clk 0:03:00]}  Nf6 {[%clk 0:02:57]} 4. d4 {[%clk 0:03:01]}  exd4 {[%clk 0:02:58]} 5. Nxd4 {[%clk 0:03:02]}  Bb4 {[%clk 0:02:59]} 6. Nxc6 {[%clk 0:03:02]}  bxc6 {[%clk 0:02:59]} 7. Bd3 {[%clk 0:03:02]}  d5 {[%clk 0:03:00]} 8. exd5 {[%clk 0:03:03]}  O-O {[%clk 0:03:00]} 9. O-O {[%clk 0:03:04]}  Bg4 {[%clk 0:03:00]} 10. f3 {[%clk 0:03:04]}  Bh5 {[%clk 0:03:01]} 11. Bg5 {[%clk 0:03:05]}  cxd5 {[%clk 0:03:01]} 12. Bxf6 {[%clk 0:03:02]}  Qxf6 {[%clk 0:03:00]} 13. Nxd5 {[%clk 0:03:03]}  Qxb2 {[%clk 0:02:59]} 14. Rb1 {[%clk 0:02:56]}  Bc5+ {[%clk 0:02:53]} 15. Kh1 {[%clk 0:02:56]}  Qa3 {[%clk 0:02:31]} 16. Qc1 {[%clk 0:01:46]}  Qxc1 {[%clk 0:02:16]} 17. Rfxc1 {[%clk 0:01:44]}  Bd6 {[%clk 0:02:12]} 18. Re1 {[%clk 0:01:42]}  Rfe8 {[%clk 0:02:08]} 19. Kg1 {[%clk 0:01:25]}  c6 {[%clk 0:01:56]} 20. Nc3 {[%clk 0:00:58]}  Rxe1+ {[%clk 0:01:53]} 21. Rxe1 {[%clk 0:00:59]}  Bb4 {[%clk 0:01:53]} 22. Re5 {[%clk 0:00:59]}  Bg6 {[%clk 0:01:34]} 23. Ne4 {[%clk 0:00:43]}  Rb8 {[%clk 0:01:20]} 24. g4 {[%clk 0:00:37]}  h6 {[%clk 0:01:19]} 25. Kg2 {[%clk 0:00:37]}  Rd8 {[%clk 0:01:02]} 26. h4 {[%clk 0:00:35]}  Bh7 {[%clk 0:00:18]} 27. a3 {[%clk 0:00:35]}  Bxa3 {[%clk 0:00:14]} 28. Ra5 {[%clk 0:00:35]}  Be7 {[%clk 0:00:14]} 29. g5 {[%clk 0:00:23]}  hxg5 {[%clk 0:00:14]} 30. hxg5 {[%clk 0:00:24]}  Ra8 {[%clk 0:00:08]} 31. Ra6 {[%clk 0:00:25]}  c5 {[%clk 0:00:06]} 32. Bc4 {[%clk 0:00:25]}  Bxe4 {[%clk 0:00:06]} 33. fxe4 {[%clk 0:00:24]}  Bxg5 {[%clk 0:00:06]} 34. Bd5 {[%clk 0:00:18]}  Rf8 {[%clk 0:00:07]} 35. Rxa7 {[%clk 0:00:18]}  g6 {[%clk 0:00:07]} 36. Rc7 {[%clk 0:00:18]}  Be3 {[%clk 0:00:07]} 37. Kf3 {[%clk 0:00:18]}  Bg1 {[%clk 0:00:07]} 38. Kg2 {[%clk 0:00:18]}  Bd4 {[%clk 0:00:06]} 39. c3 {[%clk 0:00:19]}  Be3 {[%clk 0:00:06]} 40. Kf3 {[%clk 0:00:19]}  Bg1 {[%clk 0:00:06]} 41. Kg2 {[%clk 0:00:19]}  Be3 {[%clk 0:00:05]} 42. Kf3 {[%clk 0:00:20]}  Bd2 {[%clk 0:00:04]} 43. Rxc5 {[%clk 0:00:20]}  Kg7 {[%clk 0:00:05]} 44. Rc7 {[%clk 0:00:19]}  Be1 {[%clk 0:00:04]} 45. c4 {[%clk 0:00:19]}  Ba5 {[%clk 0:00:04]} 46. Ra7 {[%clk 0:00:19]}  Bb6 {[%clk 0:00:04]} 47. Ra6 {[%clk 0:00:19]}  Bd4 {[%clk 0:00:04]} 48. Ra5 {[%clk 0:00:18]}  f5 {[%clk 0:00:04]} 49. exf5 {[%clk 0:00:18]}  gxf5 {[%clk 0:00:05]} 50. c5 {[%clk 0:00:16]}  Rd8 {[%clk 0:00:03]} 51. c6 {[%clk 0:00:16]}  Kf6 {[%clk 0:00:03]} 52. Bc4 {[%clk 0:00:09]}  Be5 {[%clk 0:00:03]} 53. Ra7 {[%clk 0:00:08]}  Rc8 {[%clk 0:00:03]} 54. Bb5 {[%clk 0:00:07]}  Rb8 {[%clk 0:00:03]} 55. Rb7 {[%clk 0:00:07]}  Rc8 {[%clk 0:00:04]} 56. Rd7 {[%clk 0:00:06]}  Rh8 {[%clk 0:00:04]} 57. Ba6 {[%clk 0:00:05]}  Rh3+ {[%clk 0:00:04]} 58. Kg2 {[%clk 0:00:05]}  Rc3 {[%clk 0:00:05]} 59. Bb7 {[%clk 0:00:05]}  Rc2+ {[%clk 0:00:05]} 60. Kf3 {[%clk 0:00:05]}  Rc3+ {[%clk 0:00:06]} 61. Kf2 {[%clk 0:00:05]}  Kg5 {[%clk 0:00:06]} 62. Rh7 {[%clk 0:00:04]}  Kg4 {[%clk 0:00:05]} 63. Rh1 {[%clk 0:00:03]}  Bd4+ {[%clk 0:00:05]} 64. Ke2 {[%clk 0:00:04]}  f4 {[%clk 0:00:06]} 65. Bc8+ {[%clk 0:00:03]}  Kg3 {[%clk 0:00:05]} 66. Rh3+ {[%clk 0:00:03]}  Kg2 {[%clk 0:00:05]} 67. Rxc3 {[%clk 0:00:04]}  Bxc3 {[%clk 0:00:05]} 68. Bg4 {[%clk 0:00:05]}  Ba5 {[%clk 0:00:04]} 69. Bf3+ {[%clk 0:00:05]}  Kg3 {[%clk 0:00:05]} 70. Bd5 {[%clk 0:00:06]}  Kg4 {[%clk 0:00:05]} 71. Bf3+ {[%clk 0:00:06]}  Kf5 {[%clk 0:00:06]} 72. Bd5 {[%clk 0:00:07]}  Kf6 {[%clk 0:00:06]} 73. Bf3 {[%clk 0:00:08]}  Ke5 {[%clk 0:00:07]} 74. Kf1 {[%clk 0:00:08]}  Kd4 {[%clk 0:00:07]} 75. Kg2 {[%clk 0:00:09]}  Ke3 {[%clk 0:00:08]} 76. Bg4 {[%clk 0:00:09]}  Bd8 {[%clk 0:00:08]} 77. Bf3 {[%clk 0:00:10]}  Kd4 {[%clk 0:00:08]} 78. Bg4 {[%clk 0:00:10]}  Ke5 {[%clk 0:00:09]} 79. Bf3 {[%clk 0:00:11]}  Kf5 {[%clk 0:00:10]} 80. Bd5 {[%clk 0:00:11]}  Bc7 {[%clk 0:00:10]} 81. Bf3 {[%clk 0:00:12]}  Kf6 {[%clk 0:00:10]} 82. Bd5 {[%clk 0:00:13]}  Bb8 {[%clk 0:00:11]} 83. Kf3 {[%clk 0:00:13]}  Ke5 {[%clk 0:00:11]} 84. Be4 {[%clk 0:00:13]}  Kd6 {[%clk 0:00:12]} 85. Kxf4 {[%clk 0:00:12]}  Bc7 {[%clk 0:00:12]} 86. Ke3 {[%clk 0:00:13]}  Bb6+ {[%clk 0:00:13]} 87. Kd3 {[%clk 0:00:13]}  Kc7 {[%clk 0:00:13]} 88. Bd5 {[%clk 0:00:13]}  Bg1 {[%clk 0:00:14]} 89. Be4 {[%clk 0:00:14]}  Ba7 {[%clk 0:00:15]} 90. Bf3 {[%clk 0:00:14]}  Bg1 {[%clk 0:00:16]} 91. Be4 {[%clk 0:00:15]}  Ba7 {[%clk 0:00:17]} 92. Bf3 {[%clk 0:00:16]}  Bg1 {[%clk 0:00:18]} 93. Be4 {[%clk 0:00:17]} 1/2-1/2


[Site "https://www.chess.com"]

[Event "Titled Tuesday Blitz November 15 Early 2022"]
[White "Pultinevicius, Paulius"]
[Black "Budrewicz, Krzysztof"]
[WhiteFideId "12809390"]
[BlackFideId "1127950"]
[WhiteElo "2900"]
[BlackElo "2613"]
[Result "0-1"]
[Round "02"]
[TimeControl "180+1"]
[Date "2022.11.16"]
[WhiteClock "0:00:06"]
[BlackClock "0:00:26"]

1. Nf3 {[%clk 0:03:00]}  Nf6 {[%clk 0:02:59]} 2. c4 {[%clk 0:03:00]}  g6 {[%clk 0:03:00]} 3. Nc3 {[%clk 0:03:00]}  Bg7 {[%clk 0:03:00]} 4. g3 {[%clk 0:03:00]}  O-O {[%clk 0:03:00]} 5. Bg2 {[%clk 0:03:01]}  d6 {[%clk 0:03:01]} 6. O-O {[%clk 0:03:01]}  Nbd7 {[%clk 0:03:01]} 7. d3 {[%clk 0:02:56]}  e5 {[%clk 0:02:57]} 8. Rb1 {[%clk 0:02:54]}  a5 {[%clk 0:02:56]} 9. a3 {[%clk 0:02:54]}  c6 {[%clk 0:02:54]} 10. b4 {[%clk 0:02:53]}  axb4 {[%clk 0:02:51]} 11. axb4 {[%clk 0:02:54]}  d5 {[%clk 0:02:49]} 12. Nd2 {[%clk 0:02:42]}  d4 {[%clk 0:02:47]} 13. Nce4 {[%clk 0:02:41]}  Nxe4 {[%clk 0:02:45]} 14. Nxe4 {[%clk 0:02:42]}  Qe7 {[%clk 0:02:45]} 15. c5 {[%clk 0:02:23]}  Nf6 {[%clk 0:02:45]} 16. Nd6 {[%clk 0:02:23]}  Ne8 {[%clk 0:02:43]} 17. Nc4 {[%clk 0:02:19]}  Be6 {[%clk 0:02:41]} 18. Bd2 {[%clk 0:02:10]}  Bxc4 {[%clk 0:02:32]} 19. dxc4 {[%clk 0:02:10]}  e4 {[%clk 0:02:30]} 20. b5 {[%clk 0:02:07]}  f5 {[%clk 0:02:23]} 21. Qb3 {[%clk 0:01:56]}  Nf6 {[%clk 0:02:18]} 22. Ra1 {[%clk 0:01:36]}  Rfd8 {[%clk 0:02:12]} 23. Rxa8 {[%clk 0:01:34]}  Rxa8 {[%clk 0:02:11]} 24. Rb1 {[%clk 0:01:35]}  Qxc5 {[%clk 0:02:05]} 25. bxc6 {[%clk 0:01:35]}  bxc6 {[%clk 0:01:58]} 26. Qb7 {[%clk 0:01:30]}  Rd8 {[%clk 0:01:37]} 27. Qc7 {[%clk 0:00:58]}  Qd6 {[%clk 0:01:28]} 28. Qa7 {[%clk 0:00:58]}  Rd7 {[%clk 0:01:26]} 29. Qa8+ {[%clk 0:00:57]}  Kf7 {[%clk 0:01:26]} 30. Rb8 {[%clk 0:00:52]}  h6 {[%clk 0:01:16]} 31. Bb4 {[%clk 0:00:38]}  c5 {[%clk 0:01:07]} 32. Bd2 {[%clk 0:00:38]}  Qe6 {[%clk 0:01:07]} 33. Qa4 {[%clk 0:00:30]}  g5 {[%clk 0:01:06]} 34. Rb5 {[%clk 0:00:22]}  Rc7 {[%clk 0:01:03]} 35. Qa5 {[%clk 0:00:21]}  Qe7 {[%clk 0:00:55]} 36. Bc1 {[%clk 0:00:21]}  Bf8 {[%clk 0:00:54]} 37. Rb6 {[%clk 0:00:20]}  Ra7 {[%clk 0:00:36]} 38. Ra6 {[%clk 0:00:20]}  Rxa6 {[%clk 0:00:36]} 39. Qxa6 {[%clk 0:00:21]}  Qd6 {[%clk 0:00:37]} 40. Qb7+ {[%clk 0:00:20]}  Be7 {[%clk 0:00:37]} 41. Bh3 {[%clk 0:00:20]}  Kg6 {[%clk 0:00:34]} 42. Qc8 {[%clk 0:00:20]}  Qe5 {[%clk 0:00:34]} 43. Bd2 {[%clk 0:00:18]}  h5 {[%clk 0:00:32]} 44. Ba5 {[%clk 0:00:18]}  g4 {[%clk 0:00:29]} 45. Bf1 {[%clk 0:00:17]}  f4 {[%clk 0:00:26]} 46. Qc6 {[%clk 0:00:15]}  fxg3 {[%clk 0:00:21]} 47. hxg3 {[%clk 0:00:16]}  e3 {[%clk 0:00:19]} 48. Bc7 {[%clk 0:00:13]}  exf2+ {[%clk 0:00:18]} 49. Kxf2 {[%clk 0:00:14]}  Qe3+ {[%clk 0:00:18]} 50. Kg2 {[%clk 0:00:10]}  Qe4+ {[%clk 0:00:18]} 51. Qxe4+ {[%clk 0:00:09]}  Nxe4 {[%clk 0:00:19]} 52. Kg1 {[%clk 0:00:04]}  Bd6 {[%clk 0:00:18]} 53. Bg2 {[%clk 0:00:05]}  Bxc7 {[%clk 0:00:16]} 54. Bxe4+ {[%clk 0:00:05]}  Kg5 {[%clk 0:00:17]} 55. Kg2 {[%clk 0:00:06]}  Be5 {[%clk 0:00:17]} 56. Bd3 {[%clk 0:00:06]}  h4 {[%clk 0:00:17]} 57. gxh4+ {[%clk 0:00:07]}  Kxh4 {[%clk 0:00:18]} 58. Be4 {[%clk 0:00:07]}  Kg5 {[%clk 0:00:19]} 59. Bd3 {[%clk 0:00:08]}  Kf4 {[%clk 0:00:19]} 60. Bg6 {[%clk 0:00:08]}  Ke3 {[%clk 0:00:20]} 61. Bd3 {[%clk 0:00:09]}  g3 {[%clk 0:00:20]} 62. Kg1 {[%clk 0:00:09]}  Bc7 {[%clk 0:00:19]} 63. Kg2 {[%clk 0:00:10]}  Bd6 {[%clk 0:00:19]} 64. Kg1 {[%clk 0:00:10]}  Kf4 {[%clk 0:00:19]} 65. Kg2 {[%clk 0:00:11]}  Bc7 {[%clk 0:00:20]} 66. Kg1 {[%clk 0:00:11]}  Ba5 {[%clk 0:00:20]} 67. Kg2 {[%clk 0:00:12]}  Be1 {[%clk 0:00:21]} 68. Kg1 {[%clk 0:00:13]}  Bf2+ {[%clk 0:00:21]} 69. Kg2 {[%clk 0:00:14]}  Ke3 {[%clk 0:00:22]} 70. Kh3 {[%clk 0:00:14]}  Kd2 {[%clk 0:00:22]} 71. Kg2 {[%clk 0:00:15]}  Ke1 {[%clk 0:00:22]} 72. Kh1 {[%clk 0:00:07]}  Be3 {[%clk 0:00:20]} 73. Kg2 {[%clk 0:00:07]}  Bf4 {[%clk 0:00:21]} 74. Kf3 {[%clk 0:00:02]}  Bd6 {[%clk 0:00:21]} 75. Kg2 {[%clk 0:00:02]}  Be5 {[%clk 0:00:21]} 76. Kh3 {[%clk 0:00:02]}  Kf2 {[%clk 0:00:21]} 77. Be4 {[%clk 0:00:01]}  Kxe2 {[%clk 0:00:22]} 78. Kg2 {[%clk 0:00:02]}  d3 {[%clk 0:00:22]} 79. Bf3+ {[%clk 0:00:03]}  Ke1 {[%clk 0:00:23]} 80. Bg4 {[%clk 0:00:01]}  d2 {[%clk 0:00:23]} 81. Bf3 {[%clk 0:00:02]}  d1=Q {[%clk 0:00:24]} 82. Bxd1 {[%clk 0:00:03]}  Kxd1 {[%clk 0:00:24]} 83. Kf1 {[%clk 0:00:04]}  Kd2 {[%clk 0:00:25]} 84. Kg2 {[%clk 0:00:05]}  Kd3 {[%clk 0:00:26]} 85. Kf3 {[%clk 0:00:05]}  Kxc4 {[%clk 0:00:26]} 86. Ke4 {[%clk 0:00:06]}  Bd6 {[%clk 0:00:26]} 0-1


[Site "https://www.chess.com"]